[Event "Israel-ch Youth U8-18 2024"]
[Site "Kfar Saba"]
[Date "2024.04.19"]
[Round "6.5"]
[White "Ostrovsky Berman, Noam"]
[Black "Menahem, Adi"]
[Result "1/2-1/2"]
[ECO "B12"]
[WhiteElo "1990"]
[BlackElo "2112"]
[Annotator "TA"]
[PlyCount "75"]
[EventDate "2024.04.10"]
[EventType "swiss"]
[EventCountry "ISR"]
[SourceTitle "playchess.com"]
[Source "ChessBase"]
[SourceQuality "1"]
[TimeControl "5400+30"]

{[%evp 20,75,23,32,79,62,95,61,70,54,68,40,127,50,122,33,47,0,118,55,58,30,55,16,70,4,43,24,27,0,0,0,13,11,36,7,28,13,14,16,16,16,20,4,20,0,53,0,0,0,0,0,0,0,0,2,3,3]} 1. e4 {[%emt 0:00:06]} c6 {[%emt 0:00:18][%cal Bc7c6,Bc6c5][%mdl 32]} 2. d4 {[%emt 0:00:30]} d5 {[%emt 0:00:08]} 3. e5 {[%emt 0:00:13]} Bf5 {[%emt 0:00:51]} 4. Nf3 {[%emt 0:00:37]} e6 {[%emt 0:00:07]} 5. Be2 {[%emt 0:00:05]} c5 {[%emt 0:00:51]} 6. c3 {[%emt 0:00:47]} Nc6 {[%emt 0:01:10]} 7. O-O {[%emt 0:00:11]} Bg4 {[%emt 0:02:19]} 8. Nbd2 {[%emt 0:00:55][%cal Bb1d2,Bd2f3,Bf3e1,Be1d3][%mdl 32]} cxd4 {[%emt 0:02:05]} 9. cxd4 {[%emt 0:00:12]} Nge7 {[%emt 0:05:14]} 10. h3 {[%emt 0:00:09]} Bxf3 {[%emt 0:02:31]} 11. Nxf3 {[%emt 0:00:09][%cal Ob2b4]} Nc8 {[%emt 0:00:42]} (11... Nf5 $14) 12. Be3 {[%emt 0:06:42]} Be7 {[%emt 0:02:16]} 13. Ne1 {[%emt 0:09:11]} Nb6 {[%emt 0:06:06] White is slightly better.} 14. b3 {[%emt 0:07:57] Prevents Nc4} O-O {[%emt 0:12:45]} 15. Nd3 {[%emt 0:09:37]} f5 {[%emt 0:09:39]} (15... Ba3 $14) 16. f4 {[%emt 0:02:59]} (16. exf6 $16 Rxf6 17. Bg4) 16... Nb4 {[%emt 0:02:38]} (16... Ba3 $14) 17. Bd2 {[%emt 0:07:52]} (17. Nc5 $16 {Strongly threatening Qd2.} Qc8 18. Qd2) 17... Nc6 {[%emt 0:04:39]} 18. Be3 {[%emt 0:05:17]} (18. Bc3 $1 $14) 18... Nb4 $1 $16 {[%emt 0:01:32]} 19. Qd2 {[%emt 0:14:03]} (19. Nc5 $16 Qc8 20. Qd2) 19... Nxd3 $14 {[%emt 0:03:02]} 20. Qxd3 {[%emt 0:00:39]} Rc8 {[%emt 0:01:10]} 21. a4 {[%emt 0:00:49]} a6 {[%emt 0:00:31]} (21... Bb4 $11 22. Bd2 Qe7) 22. Rfc1 {[%emt 0:02:55]} (22. Bd2 $14) 22... Qd7 {[%emt 0:01:30]} 23. Rxc8 {[%emt 0:01:48]} Rxc8 {[%emt 0:00:35]} 24. Rc1 {[%emt 0:00:04]} Ba3 {[%emt 0:06:19]} 25. Rc2 {[%emt 0:02:25]} Rc6 {[%emt 0:04:13]} 26. Bd2 {[%emt 0:04:26] [#] Threatens to win with a5.} Be7 {[%emt 0:02:33]} 27. Kf2 {[%emt 0:03:38]} Qc8 {[%emt 0:01:24]} 28. Rxc6 {[%emt 0:00:31]} Qxc6 {[%emt 0:00:06]} 29. Qc3 {[%emt 0:00:53]} Qxc3 {[%emt 0:01:29]} 30. Bxc3 $11 {[%emt 0:00:05][%mdl 4096] Endgame. KBB-KBN} Kf7 {[%emt 0:01:00]} 31. g4 {[%emt 0:07:19]} g6 {[%emt 0:02:08]} 32. g5 {[%emt 0:01:33]} Nd7 {[%emt 0:01:58]} (32... Ba3 $11) 33. a5 {[%emt 0:01:43]} ({Better is} 33. Ke1 $14) 33... Nb8 {[%emt 0:01:08][%cal Oh7h6] The position is equal.} 34. b4 {[%emt 0:00:18][%cal Bb3b4,Bb4b5][%mdl 32]} Ke8 {[%emt 0:01:28]} 35. b5 {[%emt 0:00:21]} Kd7 {[%emt 0:00:23]} 36. Ke3 {[%emt 0:01:01]} Ba3 {[%emt 0:03:30]} 37. Kd2 {[%emt 0:01:26]} Kc7 {[%emt 0:00:56]} 38. Kc2 {[%emt 0:01:28] Weighted Error Value: White=0.31/Black=0.22 (precise) .  Mistake:       	White=6     	Black=4      Inaccurate:     	White=6     	Black=2      OK:         	White=3     	Black=8      Strong:       	---       	Black=1} 1/2-1/2

[Event "Israel-ch Youth U8-18 2024"]
[Site "Kfar Saba"]
[Date "2024.04.19"]
[Round "6.6"]
[White "Brezis, Ari"]
[Black "Kirsch, Yahel David"]
[Result "1/2-1/2"]
[ECO "B07"]
[WhiteElo "1877"]
[BlackElo "1961"]
[Annotator "TA"]
[PlyCount "170"]
[EventDate "2024.04.10"]
[EventType "swiss"]
[EventCountry "ISR"]
[SourceTitle "playchess.com"]
[Source "ChessBase"]
[SourceQuality "1"]
[TimeControl "5400+30"]

{[%evp 43,170,26,91,15,14,7,0,-37,-63,-57,-63,-98,-31,-81,-68,-72,-75,-80,-74,-89,-74,-85,-88,-117,-115,-126,-121,-125,-125,-130,-134,-124,-112,-171,-168,-183,-141,-198,0,-226,-216,-228,-225,-228,-215,-245,-230,-237,-214,-220,-141,-146,-39,-45,-45,-54,-42,-179,-164,-249,-158,-152,-158,-210,-112,-114,-65,-77,-68,-67,-56,-83,-80,-91,0,0,0,0,0,0,0,0,0,0,0,0,0,0,0,-7,-8,-8,0,-8,0,-7,0,-9,0,0,0,0,0,0,0,0,0,0,0,0,0,0,0,0,0,-29951,-29960,-29961,-29962,-29962,-29960,-29958,0,0,0,0,0,0,0]} 1. d4 {[%emt 0:00:16]} d6 {[%emt 0:00:08]} 2. e4 {[%emt 0:00:18]} Nf6 {[%emt 0:00:39]} 3. f3 {[%emt 0:02:25]} d5 {[%emt 0:01:16]} 4. e5 {[%emt 0:01:47]} Nfd7 {[%emt 0:00:08]} 5. c3 {[%emt 0:15:55]} c5 {[%emt 0:01:53]} 6. Be3 {[%emt 0:00:32] B07: Pirc Defence: Miscellaneous Systems.} cxd4 {[%emt 0:02:45]} 7. cxd4 {[%emt 0:01:57]} Nc6 {[%emt 0:01:15]} 8. Nc3 {[%emt 0:00:22]} Nb6 {[%emt 0:02:31]} 9. Bd3 $146 {[%emt 0:11:47]} ({Predecessor:} 9. f4 a6 10. Bd3 Nb4 11. Bb1 Nc4 12. Bc1 Nc6 13. a3 g6 14. b3 Nb6 15. Be3 {½-½ Kortschnoj,V (2580)-Bezold,M (2456) Rilton Cup 33rd 2003 (5)}) 9... Nb4 {[%emt 0:11:47]} 10. Bb1 {[%emt 0:03:54]} Nc4 {[%emt 0:05:12]} 11. Bc1 {[%emt 0:00:04]} e6 {[%emt 0:09:35]} 12. Nge2 {[%emt 0:02:42]} Bd7 {[%emt 0:04:37]} 13. a3 {[%emt 0:03:49]} Nc6 {[%emt 0:02:22]} 14. b3 {[%emt 0:01:25]} N4a5 {[%emt 0:01:09]} 15. Bc2 {[%emt 0:03:35]} Rc8 {[%emt 0:05:10]} 16. Be3 {[%emt 0:02:13]} f6 {[%emt 0:03:37]} 17. f4 {[%emt 0:00:44]} Qb6 {[%emt 0:44:56]} 18. Bf2 {[%emt 0:07:45]} f5 {[%emt 0:00:00]} 19. O-O {[%emt 0:03:33]} Nd8 {[%emt 0:00:00]} 20. Be1 {[%emt 0:01:26]} Be7 {[%emt 0:00:00]} 21. Rf3 {[%emt 0:00:57]} Nf7 {[%emt 0:00:00]} 22. a4 {[%emt 0:08:30]} (22. Bxf5 $1 $16 Rxc3 (22... exf5 $2 23. Nxd5 Qb5 24. Nxe7 $18)) 22... Nc6 {[%emt 0:00:00] [#]} (22... Bb4 $11 {keeps the balance.}) 23. a5 {[%emt 0:00:39]} (23. Bxf5 $1 $16 {[%cal Oc3d5] Strongly threatening Nxd5!} exf5 24. Nxd5) 23... Qd8 $1 $11 {[%emt 0:00:00]} 24. a6 {[%emt 0:00:47]} b6 {[%emt 0:00:00]} 25. Nb5 {[%emt 0:25:38]} Ncxe5 $1 {[%emt 0:00:00]} 26. dxe5 {[%emt 0:00:00]} Bxb5 {[%emt 0:00:00]} 27. Nd4 {[%emt 0:00:00]} Bd7 {[%emt 0:00:00]} (27... Bc5 $17 28. Rc3 Bxd4+ 29. Qxd4 O-O 30. Rxc8 Qxc8) 28. Bxf5 {[%emt 0:00:00]} (28. b4 $15) 28... exf5 $17 {[%emt 0:00:00]} 29. e6 {[%emt 0:00:00]} Nd6 {[%emt 0:00:00]} 30. exd7+ {[%emt 0:00:00]} Qxd7 {[%emt 0:00:00]} 31. Bb4 {[%emt 0:00:00]} Ne4 {[%emt 0:00:00]} 32. Bxe7 {[%emt 0:00:00]} Kxe7 {[%emt 0:00:00]} 33. Qe1 {[%emt 0:00:00]} Kf7 {[%emt 0:00:00]} (33... g6 {is more complex.} 34. Rd3 Rhe8 35. Nf3 Qd6) 34. Rd1 {[%emt 0:00:00]} Rhe8 {[%emt 0:00:00]} 35. Qb4 {[%emt 0:00:00]} Rc5 {[%emt 0:00:00]} 36. Rfd3 {[%emt 0:00:00]} Kg8 {[%emt 0:00:00]} 37. Nf3 {[%emt 0:00:00]} Qc8 {[%emt 0:00:00]} 38. Ne5 {[%emt 0:00:00]} (38. Rxd5 $17 Rxd5 (38... Qxa6 39. Rd8 $17) 39. Rxd5) 38... Qxa6 $19 {[%emt 0:00:00]} 39. Qd4 {[%emt 0:00:00]} Nf6 {[%emt 0:00:00]} 40. Rg3 {[%emt 0:00:00]} (40. h3 $17) 40... Ne4 $2 {[%emt 0:03:28]} ({Black should try} 40... Qb5 $19 {...Rc2 would now be deadly.} 41. h3 Qe2) 41. Re3 $2 {[%emt 0:00:00]} (41. Rgd3 $1 $11 {and White has nothing to worry.}) 41... Qa2 $19 {[%emt 0:01:02]} 42. Red3 {[%emt 0:00:27]} Rd8 {[%emt 0:01:03]} 43. Nc4 {[%emt 0:00:43]} b5 {[%emt 0:01:31]} 44. Ne3 {[%emt 0:00:12]} Qf2+ {[%emt 0:00:28]} 45. Kh1 {[%emt 0:00:00]} Qxf4 {[%emt 0:00:27]} 46. Rf1 {[%emt 0:01:17]} Qh4 {[%emt 0:01:42]} 47. Nxf5 {[%emt 0:00:18] [#]} Nf2+ {[%emt 0:00:48]} (47... Qf6 $1 $17 {[%mdl 512] White must now prevent ...Qxd4.} 48. Rdf3 (48. Rdd1 Rd7) 48... h6 49. Qxf6 Nxf6 (49... gxf6 50. Nxh6+ Kh7 51. Ng4 $17) 50. Nxh6+ Kh7 (50... gxh6 51. Rxf6 Rd7 52. Kg1 $17)) 48. Kg1 $1 $15 {[%emt 0:00:41]} (48. Qxf2 $2 Qxf2 49. Ne7+ Kh8 $19) 48... Qxd4 {[%emt 0:00:05]} 49. Rxd4 {[%emt 0:00:06]} Ne4 {[%emt 0:01:12]} 50. b4 {[%emt 0:00:07]} (50. Ne7+ $15 Kh8 51. b4) 50... Rc7 $19 {[%emt 0:00:18]} 51. Rfd1 {[%emt 0:00:48]} (51. g3 {was called for.}) 51... g6 {[%emt 0:00:28]} 52. Ne3 {[%emt 0:00:12]} Nc3 {[%emt 0:00:12]} 53. R1d2 {[%emt 0:00:23]} (53. Nxd5 $17 Nxd1 54. Ne7+ Kf7 (54... Rxe7 55. Rxd8+ Kf7 56. Rxd1 $17) 55. Rxd8) 53... Re7 {[%emt 0:00:50]} ({Black should play} 53... Re8 $19 54. R4d3 d4) 54. Nxd5 $17 {[%emt 0:01:02] [#]} Rxd5 {[%emt 0:00:14]} (54... Ne2+ $1 $17 55. Kf2 Nxd4 56. Nxe7+ Kf7) 55. Rxd5 $15 {[%emt 0:00:07]} Nxd5 {[%emt 0:00:02]} 56. Rxd5 {[%emt 0:00:02]} Rb7 {[%emt 0:00:54]} 57. Kf2 {[%emt 0:00:05]} Kf7 {[%emt 0:00:06]} 58. Rd6 {[%emt 0:00:24]} Ke7 {[%emt 0:01:15]} (58... Rc7 $17) 59. Ra6 $11 {[%emt 0:00:01]} Kd7 {[%emt 0:00:27]} 60. Ke3 {[%emt 0:00:05]} Kc8 {[%emt 0:00:29]} 61. Kd4 {[%emt 0:01:51]} Rd7+ {[%emt 0:01:25]} 62. Kc5 {[%emt 0:01:02]} Kb7 {[%emt 0:00:04]} 63. Rf6 {[%emt 0:00:24]} a6 {[%emt 0:00:25]} 64. Rb6+ {[%emt 0:00:49]} Ka7 {[%emt 0:00:07]} 65. Rc6 {[%emt 0:00:22]} Rb7 {[%emt 0:01:16]} 66. Rf6 {[%emt 0:02:07]} Rc7+ {[%emt 0:01:21]} 67. Kd5 {[%emt 0:00:01]} Rd7+ {[%emt 0:00:37]} 68. Kc5 {[%emt 0:01:00]} Rc7+ {[%emt 0:00:04]} 69. Kd5 {[%emt 0:00:04]} Rb7 {[%emt 0:00:08]} 70. Kc5 {[%emt 0:00:15]} a5 {[%emt 0:00:24]} 71. bxa5 {[%emt 0:00:11]} b4 {[%emt 0:00:08]} 72. Rf2 {[%emt 0:00:10]} Ka6 {[%emt 0:00:44]} 73. Rb2 {[%emt 0:00:05]} Rb5+ {[%emt 0:00:14]} (73... Kxa5 74. Ra2#) 74. Kc4 {[%emt 0:00:48]} Kxa5 {[%emt 0:00:17]} ({Don't play} 74... Rxa5 75. g3 $17) 75. Ra2+ {[%emt 0:00:06]} Kb6 {[%emt 0:00:13]} 76. Rb2 {[%emt 0:00:04]} Kc6 {[%emt 0:00:34]} 77. Rxb4 {[%emt 0:00:10]} Rh5 {[%emt 0:00:41]} 78. h3 {[%emt 0:01:14]} Rh4+ {[%emt 0:00:14]} 79. Kc3 $2 {[%emt 0:00:04][%mdl 8192]} (79. g4 $11) 79... Rxb4 {[%emt 0:00:05]} 80. Kxb4 {[%emt 0:00:01]} Kd5 {[%emt 0:00:13]} 81. Kc3 {[%emt 0:00:05]} Ke4 {[%emt 0:00:35]} 82. Kd2 {[%emt 0:00:06]} h5 $2 {[%emt 0:00:40]} (82... Kf4 {mates} 83. Ke1 Kg3 84. Kf1 Kh2 85. h4 Kg3 86. h5 g5 (86... gxh5 87. Kg1 $11) 87. Kg1 h6 88. Kh1 Kh4 89. Kh2 Kg4 90. Kg1 Kxh5 91. Kh1 Kg4 92. Kh2 h5 93. Kh1 Kg3 94. Kg1 h4 95. Kh1 h3 96. Kg1 g4 97. gxh3 Kxh3 98. Kf2 g3+ 99. Kf1 Kh2 100. Ke2 g2 101. Kd3 g1=Q (101... g1=B 102. Ke4 $11) 102. Kc4 Qg5 103. Kc3 Qc5+ 104. Kb3 Kg3 105. Ka4 Kf3 106. Kb3 Ke4 107. Ka4 Kd3 108. Kb3 Qb6+ 109. Ka3 Kc3 110. Ka4 Qb4#) 83. Ke2 $11 {[%emt 0:00:48]} h4 {[%emt 0:00:14]} 84. Kf2 {[%emt 0:00:03]} Kf4 {[%emt 0:00:05]} 85. Kg1 {[%emt 0:00:03]} Kg3 {[%emt 0:01:16]} 1/2-1/2

[Event "Israel-ch Youth U8-18 2024"]
[Site "Kfar Saba"]
[Date "2024.04.19"]
[Round "6.7"]
[White "Afek, Itay"]
[Black "Taragan, Uri"]
[Result "1-0"]
[ECO "A07"]
[WhiteElo "1816"]
[BlackElo "1909"]
[Annotator "TA"]
[PlyCount "73"]
[EventDate "2024.04.10"]
[EventType "swiss"]
[EventCountry "ISR"]
[SourceTitle "playchess.com"]
[Source "ChessBase"]
[SourceQuality "1"]
[TimeControl "5400+30"]

{[%evp 11,73,0,0,-15,4,13,25,0,0,4,1,0,0,-25,-26,-29,-20,-33,-25,-29,0,-2,115,109,227,175,215,137,133,142,110,122,313,316,337,298,293,263,699,663,1806,737,1481,1093,1358,889,1161,905,817,382,432,434,5029,4927,5321,5314,5322,5314,29989,29990,29995,29994,29996,29997]} 1. Nf3 {[%emt 0:00:05]} Nf6 {[%emt 0:02:49]} 2. g3 {[%emt 0:00:06]} d5 {[%emt 0:00:05]} 3. Bg2 {[%emt 0:00:02]} g6 {[%emt 0:00:05]} 4. O-O {[%emt 0:00:13]} Bg7 {[%emt 0:00:05]} 5. d3 {[%emt 0:00:12]} O-O {[%emt 0:02:48]} 6. Nbd2 {[%emt 0:00:23]} Re8 {[%emt 0:10:35]} 7. Re1 {[%emt 0:00:19]} c5 {[%emt 0:09:34]} 8. e4 {[%emt 0:00:52]} Nc6 {[%emt 0:04:15]} 9. a4 {[%emt 0:03:22] White has an edge.} b6 {[%emt 0:09:47]} 10. exd5 {[%emt 0:09:47]} Nxd5 {[%emt 0:02:33]} 11. Nc4 {[%emt 0:00:38][%cal Oa4a5]} Bb7 {[%emt 0:06:16]} 12. Nfe5 {[%emt 0:06:53]} Nxe5 {[%emt 0:08:57]} 13. Nxe5 {[%emt 0:00:18]} Qc7 {[%emt 0:02:08]} 14. Qe2 {[%emt 0:05:50][%cal Oe5f7]} Rad8 {[%emt 0:06:10]} 15. a5 {[%emt 0:03:09]} e6 {[%emt 0:06:07]} 16. axb6 {[%emt 0:01:53]} Qxb6 {[%emt 0:02:07]} (16... axb6 $11 {remains equal.} 17. Bd2 Ba8) 17. Nc4 {[%emt 0:04:44] White is more active.} Qb5 {[%emt 0:11:55]} (17... Qc7 $16) 18. Rxa7 {[%emt 0:04:45]} Ba6 {[%emt 0:04:36]} 19. Bg5 {[%emt 0:06:10]} Rd7 {[%emt 0:02:15]} 20. Rxd7 {[%emt 0:04:25]} Qxd7 {[%emt 0:00:01]} 21. Ne5 {[%emt 0:01:04][%cal Bc4e5,Be5f7,Bf7h6,Bh6f7,Bf7d6][%mdl 32]} Qc7 {[%emt 0:02:31] [#] Black cannot hold the game after this.} (21... Qc8 $16 22. Ra1 Rf8) 22. Nxf7 $1 $18 {[%emt 0:01:57][%mdl 512]} Nb4 {[%emt 0:03:18]} (22... Qxf7 23. Bxd5) 23. Nh6+ {[%emt 0:04:43]} Kh8 {[%emt 0:00:00]} 24. Qe4 {[%emt 0:05:06]} Nxc2 $2 {[%emt 0:01:03] [#]} (24... Bb5 25. Re2 Bxb2) 25. Qa4 $1 {[%emt 0:01:10][%csl LRa6,LRc2,LRe8]} Rb8 {[%emt 0:02:27]} 26. Qxc2 {[%emt 0:00:42]} (26. Rxe6 $142 Qc8 27. Rxa6 (27. Qxa6 Qxa6 28. Rxa6 Nb4 $18)) 26... Rxb2 {[%emt 0:00:08]} 27. Qa4 {[%emt 0:00:56]} Qc8 {[%emt 0:00:23] Prevents Qe8+} 28. Nf7+ {[%emt 0:00:55]} Kg8 {[%emt 0:00:02]} 29. Nd6 {[%emt 0:00:01]} Qf8 {[%emt 0:00:33]} 30. Qf4 {[%emt 0:10:17]} (30. Qxa6 $2 Qxf2+ 31. Kh1 Qxg2#) (30. Bf4 $142 Bxd3 31. Qd7 (31. Rxe6 Rb1+ $11)) 30... Bxd3 {[%emt 0:01:23]} 31. Bh3 {[%emt 0:01:25]} ({Worse is} 31. Rxe6 Rb1+ $11) 31... Bf5 {[%emt 0:00:31]} (31... Qxf4 $142 32. Bxe6+ (32. gxf4 h6 $18) (32. Bxf4 e5 $18) 32... Kh8 33. Bxf4 (33. gxf4 h6 $18) 33... Bd4) 32. Bxf5 {[%emt 0:00:16]} gxf5 {[%emt 0:00:24]} 33. Rxe6 {[%emt 0:01:04][%cal Oe6e8] White threatens Re8! and mate.} Rb1+ {[%emt 0:00:08]} 34. Kg2 {[%emt 0:00:09][%cal Oe6e8] Intending Re8! and mate.} Qa8+ {[%emt 0:00:09]} 35. Kh3 {[%emt 0:01:28] White mates.} Qd5 {[%emt 0:01:20]} 36. Re8+ {[%emt 0:01:02]} Bf8 {[%emt 0:00:02]} 37. Bh6 {[%emt 0:00:42] Weighted Error Value: White=0.54/Black=0.91.  Loses game:     	---       	Black=1      Mistake:       	---       	Black=4      Inaccurate:     	White=1     	Black=2      OK:         	White=7     	Black=6      Best:        	White=1     	---        Strong:       	White=1     	---        Brilliant:      	White=1     	---} 1-0

[Event "Israel-ch Youth U8-18 2024"]
[Site "Kfar Saba"]
[Date "2024.04.19"]
[Round "6.8"]
[White "Zakin, Ilay"]
[Black "Manyevich, Rom"]
[Result "1-0"]
[ECO "B11"]
[WhiteElo "2178"]
[BlackElo "1927"]
[Annotator "TA"]
[PlyCount "101"]
[EventDate "2024.04.10"]
[EventType "swiss"]
[EventCountry "ISR"]
[SourceTitle "playchess.com"]
[Source "ChessBase"]
[SourceQuality "1"]
[TimeControl "5400+30"]

{[%evp 10,101,34,29,33,26,33,13,20,0,0,-54,-20,-43,-13,-18,-15,-19,-24,-20,6,0,64,43,60,35,80,76,158,137,171,129,129,127,176,93,157,132,131,133,137,102,150,139,192,116,128,129,146,151,156,162,160,150,163,154,193,150,368,395,406,361,435,307,438,380,385,378,474,480,481,480,476,474,564,564,607,612,600,597,758,755,808,687,29991,712,760,717,2333,699,666,658,7351,5588]} 1. e4 {[%emt 0:00:01]} c6 {[%emt 0:00:04]} 2. Nc3 {[%emt 0:00:06]} d5 {[%emt 0:00:05]} 3. Nf3 {[%emt 0:00:03]} dxe4 {[%emt 0:00:09]} 4. Nxe4 {[%emt 0:00:05]} Nf6 {[%emt 0:00:09]} 5. Qe2 {[%emt 0:00:06]} Nxe4 {[%emt 0:00:06]} 6. Qxe4 {[%emt 0:00:01]} Be6 {[%emt 0:00:17]} 7. Be2 {[%emt 0:02:39]} Nd7 {[%emt 0:01:57]} 8. b3 {[%emt 0:01:46]} Nf6 {[%emt 0:00:24] The position is equal.} 9. Qh4 {[%emt 0:00:24]} Bf5 {[%emt 0:01:30]} 10. Ne5 {[%emt 0:32:01]} (10. Bb2 $11) 10... e6 {[%emt 0:05:54]} 11. O-O {[%emt 0:03:07]} Be7 {[%emt 0:04:43][%cal Of6g4] [#] Hoping for ...Ng4!} (11... Bxc2 12. d3 Nd5 13. Qc4 $16) 12. Qg3 {[%emt 0:04:45]} O-O {[%emt 0:02:19]} 13. d3 {[%emt 0:01:09][%cal Bd2d3,Bd3d4][%mdl 32] Wards off Ne4} Nd5 {[%emt 0:11:25]} 14. Bb2 {[%emt 0:01:43][%cal Oe5c6] Strongly threatening Nxc6!} Bf6 {[%emt 0:00:39]} 15. c4 {[%emt 0:02:12]} Nb6 {[%emt 0:09:04]} (15... Nb4 $11) 16. d4 {[%emt 0:02:10] White is more active.} a5 {[%emt 0:02:54]} 17. a4 {[%emt 0:08:14]} Qc7 {[%emt 0:04:10]} 18. Ng4 $36 {[%emt 0:03:41][%mdl 2048] White has strong initiative.} Bd8 {[%emt 0:10:04]} (18... Qd8 $142) 19. Nh6+ $16 {[%emt 0:00:48]} Kh8 {[%emt 0:00:01] [#] And now ...Qxg3 would win.} 20. Nxf5 {[%emt 0:00:10]} exf5 {[%emt 0:00:09]} 21. Qh3 {[%emt 0:00:43]} Qf4 {[%emt 0:07:49]} (21... Nd7 $16) 22. Bd3 {[%emt 0:00:53]} (22. Rad1 $18) 22... Bf6 {[%emt 0:02:08]} (22... g6 $142) 23. Qxf5 {[%emt 0:06:59]} Qxf5 {[%emt 0:00:18]} 24. Bxf5 {[%emt 0:00:02]} g6 {[%emt 0:00:57]} 25. Be4 {[%emt 0:02:08]} Rad8 {[%emt 0:04:05]} (25... Nd7 $142) 26. Rad1 {[%emt 0:00:19]} Nc8 {[%emt 0:02:58]} (26... Nd7 $16 {might work better.}) 27. Rd2 {[%emt 0:10:07]} (27. Bc3 $18) 27... Nd6 {[%emt 0:01:41]} 28. Bf3 {[%emt 0:01:27]} Nf5 {[%emt 0:00:18]} 29. Rfd1 {[%emt 0:01:48]} Rfe8 {[%emt 0:03:11]} 30. g3 {[%emt 0:01:35]} Kg7 {[%emt 0:03:58]} 31. Kg2 {[%emt 0:03:38]} h5 {[%emt 0:02:09]} 32. Bc3 {[%emt 0:01:29]} Rd7 {[%emt 0:01:37]} 33. Rd3 {[%emt 0:01:44]} g5 $2 {[%emt 0:03:26] This move loses the game for Black.} (33... Ra8 $16 34. Kf1 Ne7) 34. Bxh5 $18 {[%emt 0:01:05][%cal Oh5g4] aiming for Bg4!} (34. Bxa5 g4 $11 (34... Nxd4 $2 {too greedy.} 35. Bxh5 Be5 36. Bb6 $18)) 34... Rd6 {[%emt 0:04:24]} 35. h3 {[%emt 0:00:51]} ({Don't play} 35. Bxa5 Re4 36. d5 c5 $18) 35... b6 {[%emt 0:01:47]} 36. Bg4 {[%emt 0:00:43]} Kg6 {[%emt 0:00:31]} (36... Nh6 $142 37. Bf3 Nf5) 37. d5 {[%emt 0:01:27] Threatens to win with Rf3.} Bxc3 {[%emt 0:00:29]} 38. Rxc3 {[%emt 0:00:10]} c5 {[%emt 0:00:09]} 39. Bxf5+ {[%emt 0:00:14]} Kxf5 {[%emt 0:00:01][%mdl 4096] Endgame. KRR-KRR} 40. Rf3+ {[%emt 0:00:01]} Kg6 {[%emt 0:00:17]} 41. Rdd3 {[%emt 0:00:42]} Re1 {[%emt 0:00:35]} 42. Rde3 {[%emt 0:00:33]} Rb1 {[%emt 0:00:54]} 43. Re8 {[%emt 0:00:34]} Kg7 {[%emt 0:00:46]} 44. Rc8 {[%emt 0:01:41]} g4 {[%emt 0:01:12]} 45. hxg4 {[%emt 0:00:29]} Rh6 {[%emt 0:00:07]} 46. Rc7 {[%emt 0:00:12]} Rhh1 {[%emt 0:01:01][%csl Gh1][%cal Rb1g1]} 47. Rd3 {[%emt 0:01:13]} (47. Rfxf7+ $142 Kg6 48. Rfe7 (48. Rg7+ Kf6 $18) 48... Rhg1+ 49. Kf3 Rxg3+ 50. Kxg3 Rxb3+ 51. Kf4 Rf3+ 52. Kxf3 Kg5 53. Re5+ Kf6 54. Kf4 Kg6 55. Re6#) 47... Rhg1+ {[%emt 0:00:36] White is clearly winning.} 48. Kf3 {[%emt 0:00:20]} Rb2 {[%emt 0:00:46]} 49. Re7 {[%emt 0:00:12] d6 is the strong threat.} Rf1 {[%emt 0:00:25]} 50. Re2 {[%emt 0:00:02]} Rbb1 {[%emt 0:00:14]} 51. d6 {[%emt 0:00:12] Weighted Error Value: White=0.25 (precise) /Black=0.55.  Loses game:     	---       	Black=1      Mistake:       	White=3     	Black=7      Inaccurate:     	---       	Black=4      OK:         	White=11    	Black=9      Best:        	White=5     	Black=1} 1-0